fUSD/lending_fUSD_20241021
["ID","MTS","AMOUNT","RATE_DAILY","PERIOD"]
[340599582,1729518673236,-500.0,0.00024931,3]
[340599583,1729518673246,-503.28866209,0.00024931,3]
[340599584,1729518673556,-506.49743681,0.00024931,3]
[340599585,1729518673580,-500.0,0.00024931,3]
[340599586,1729518673591,-173.87551283,0.00024931,3]
[340599587,1729518673601,-223.44,0.00024931,3]
[340599588,1729518673611,-509.48871914,0.00024931,3]
[340599589,1729518673622,-500.0,0.00024931,3]
[340599590,1729518673631,-500.0,0.00024931,3]
[340599591,1729518673642,-501.47986525,0.00024931,3]
[340599592,1729518673656,-503.61968201,0.00024931,3]
[340599593,1729518673668,-500.0,0.00024931,3]
[340599594,1729518673679,-501.40649183,0.00024931,3]
[340599595,1729518673689,-500.0,0.00024931,3]
[340599596,1729518673699,-500.0,0.00024931,3]
[340599597,1729518673709,-502.10576885,0.00024931,3]
[340599598,1729518673719,-500.0,0.00024931,3]
[340599599,1729518673746,-500.0,0.00024931,3]
[340599600,1729518673764,-500.0,0.00024931,3]
[340599601,1729518673777,-500.0,0.00024931,3]
[340599602,1729518673789,-451.73720136,0.00024931,3]
[340599603,1729518673802,-578.2809946,0.00024931,3]
[340599604,1729518673813,-513.8592392,0.00024931,3]
[340599605,1729518673826,-526.66878566,0.00024931,3]
[340599606,1729518673838,-500.0,0.00024931,3]
[340599607,1729518673851,-500.0,0.00024931,3]
[340599608,1729518673864,-500.0,0.00024931,3]
[340599609,1729518673877,-500.0,0.00024931,3]
[340599610,1729518673888,-500.0,0.00024931,3]
[340599611,1729518673903,-500.0,0.00024931,3]
[340599612,1729518673915,-561.61602425,0.00024931,3]
[340599613,1729518673927,-500.0,0.00024931,3]
[340599614,1729518673939,-261.86573906,0.00024931,3]
[340599615,1729518673951,-500.0,0.00024931,3]
[340599616,1729518673963,-500.0,0.00024931,3]
[340599617,1729518673976,-572.14569596,0.00024931,3]
[340599618,1729518673988,-512.97301883,0.00024931,3]
[340599619,1729518673999,-352.55711912,0.00024931,3]
[340599620,1729518674011,-522.12413781,0.00024931,3]
[340599621,1729518674022,-605.39841061,0.00024931,3]
[340599622,1729518674034,-500.0,0.00024931,3]
[340599623,1729518674046,-504.99312452,0.00024931,3]
[340599624,1729518674058,-500.0,0.00024931,3]
[340599625,1729518674070,-503.65168171,0.00024931,3]
[340599626,1729518674082,-547.45144152,0.00024931,3]
[340599627,1729518674093,-551.21823495,0.00024931,3]
[340599628,1729518674105,-500.0,0.00024931,3]
[340599629,1729518674116,-492.9160365,0.00024931,3]
[340599630,1729518674127,-500.0,0.00024931,3]
[340599631,1729518674139,-504.23568751,0.00024931,3]
[340599632,1729518674152,-500.0,0.00024931,3]
[340599633,1729518674164,-501.76976941,0.00024931,3]
[340599634,1729518674176,-500.0,0.00024931,3]
[340599635,1729518674188,-490.63930259,0.00024931,3]
[340599636,1729518674199,-500.0,0.00024931,3]
[340599637,1729518674211,-507.90257266,0.00024931,3]
[340599638,1729518674222,-500.0,0.00024931,3]
[340599639,1729518674233,-500.0,0.00024931,3]
[340599640,1729518674244,-500.0,0.00024931,3]
[340599641,1729518674256,-500.0,0.00024931,3]
[340599642,1729518674268,-442.52706851,0.00024931,3]
[340599643,1729518674279,-500.0,0.00024931,3]
[340599644,1729518674290,-500.0,0.00024931,3]
[340599645,1729518674302,-500.0,0.00024931,3]
[340599646,1729518674313,-500.0,0.00024931,3]
[340599647,1729518674323,-239.86555633,0.00024931,3]
[340599648,1729518674334,-506.78674012,0.00024931,3]
[340599649,1729518674345,-500.0,0.00024931,3]
[340599650,1729518674355,-500.0,0.00024931,3]
[340599651,1729518674366,-500.0,0.00024931,3]
[340599652,1729518674378,-500.0,0.00024931,3]
[340599653,1729518674389,-502.99750057,0.00024931,3]
[340599654,1729518674410,-500.0,0.00024931,3]
[340599655,1729518674422,-486.60077541,0.00024931,3]
[340599656,1729518674434,-500.0,0.00024931,3]
[340599657,1729518674447,-500.0,0.00024931,3]
[340599658,1729518674459,-262.30040624,0.00024931,3]
[340599659,1729518674471,-500.0,0.00024931,3]
[340599660,1729518674485,-218.4037317,0.00024931,3]
[340599661,1729518674497,-500.0,0.00024931,3]
[340599662,1729518674509,-502.05472907,0.00024931,3]
[340599663,1729518674520,-500.0,0.00024931,3]
[340599664,1729518674532,-500.0,0.00024931,3]
[340599665,1729518674545,-627.29458824,0.00024931,3]
[340599666,1729518674556,-500.0,0.00024931,3]
[340599667,1729518674568,-579.37729236,0.00024931,3]
[340599668,1729518674580,-500.0,0.00024931,3]
[340599669,1729518674592,-517.85044234,0.00024931,3]
[340599670,1729518674604,-500.0,0.00024931,3]
[340599671,1729518674616,-500.0,0.00024931,3]
[340599672,1729518674627,-500.0,0.00024931,3]
[340599673,1729518674639,-500.0,0.00024931,3]
[340599674,1729518674651,-500.0,0.00024931,3]
[340599675,1729518674663,-500.0,0.00024931,3]
[340599676,1729518674675,-500.0,0.00024931,3]
[340599677,1729518674688,-586.45151103,0.00024931,3]
[340599678,1729518674700,-603.40738512,0.00024931,3]
[340599679,1729518674713,-235.32578293,0.00024931,3]
[340599680,1729518674724,-502.6073672,0.00024931,3]
[340599681,1729518674735,-500.0,0.00024931,3]
[340599682,1729518674747,-500.0,0.00024931,3]
[340599683,1729518674758,-500.0,0.00024931,3]
[340599684,1729518674770,-503.06373522,0.00024931,3]
[340599685,1729518674781,-500.0,0.00024931,3]
[340599686,1729518674792,-500.0,0.00024931,3]
[340599687,1729518674804,-500.0,0.00024931,3]
[340599688,1729518674815,-561.2180713,0.00024931,3]
[340599689,1729518674826,-500.0,0.00024931,3]
[340599690,1729518674837,-500.0,0.00024931,3]
[340599691,1729518674849,-500.0,0.00024931,3]
[340599692,1729518674860,-500.0,0.00024931,3]
[340599693,1729518674872,-162.86297544,0.00024931,3]
[340599694,1729518674883,-500.0,0.00024931,3]
[340599695,1729518674894,-500.0,0.00024931,3]
[340599696,1729518674912,-500.0,0.00024931,3]
[340599697,1729518674923,-231.35565969,0.00024931,3]
[340599698,1729518674935,-500.0,0.00024931,3]
[340599699,1729518674947,-352.27465902,0.00024931,3]
[340599700,1729518674958,-500.0,0.00024931,3]
[340599701,1729518674970,-503.72846308,0.00024931,3]
[340599702,1729518674981,-500.0,0.00024931,3]
[340599703,1729518674992,-500.0,0.00024931,3]
[340599704,1729518675003,-500.0,0.00024931,3]
[340599705,1729518675014,-509.7763816,0.00024931,3]
[340599706,1729518675026,-597.16827704,0.00024931,3]
[340599707,1729518675036,-516.15659227,0.00024931,3]
[340599708,1729518675048,-500.0,0.00024931,3]
[340599709,1729518675059,-500.0,0.00024931,3]
[340599710,1729518675069,-602.09806639,0.00024931,3]
[340599711,1729518675081,-500.0,0.00024931,3]
[340599712,1729518675094,-502.89770797,0.00024931,3]
[340599713,1729518675108,-503.82653185,0.00024931,3]
[340599714,1729518675120,-500.0,0.00024931,3]
[340599715,1729518675131,-522.48944202,0.00024931,3]
[340599716,1729518675143,-500.0,0.00024931,3]
[340599717,1729518675156,-500.0,0.00024931,3]
[340599718,1729518675168,-500.0,0.00024931,3]
[340599719,1729518675179,-213.84861408,0.00024931,3]
[340599720,1729518675191,-500.0,0.00024931,3]
[340599721,1729518675202,-500.0,0.00024931,3]
[340599722,1729518675213,-462.61787113,0.00024931,3]
[340599723,1729518675224,-505.19402938,0.00024931,3]
[340599724,1729518675235,-507.75572969,0.00024931,3]
[340599725,1729518675245,-500.0,0.00024931,3]
[340599726,1729518675255,-526.42892099,0.00024931,3]
[340599727,1729518675266,-502.51695439,0.00024931,3]
[340599728,1729518675277,-500.0,0.00024931,3]
[340599729,1729518675287,-503.33804078,0.00024931,3]
[340599730,1729518675298,-520.65905582,0.00024931,3]
[340599731,1729518675308,-500.0,0.00024931,3]
[340599732,1729518675319,-501.88534865,0.00024931,3]
[340599733,1729518675329,-500.0,0.00024931,3]
[340599734,1729518675340,-500.0,0.00024931,3]
[340599735,1729518675351,-500.0,0.00024931,3]
[340599736,1729518675361,-506.26657996,0.00024931,3]
[340599737,1729518675371,-500.0,0.00024931,3]
[340599738,1729518675381,-500.0,0.00024931,3]
[340599739,1729518675391,-510.90911312,0.00024931,3]
[340599740,1729518675413,-500.0,0.00024931,3]
[340599741,1729518675424,-500.0,0.00024931,3]
[340599742,1729518675434,-505.5,0.00024931,3]
[340599743,1729518675444,-500.0,0.00024931,3]
[340599744,1729518675454,-506.07151003,0.00024931,3]
[340599745,1729518675464,-502.97759279,0.00024931,3]
[340599746,1729518675474,-509.70465517,0.00024931,3]
[340599747,1729518675485,-500.0,0.00024931,3]
[340599748,1729518675495,-512.10186087,0.00024931,3]
[340599749,1729518675505,-500.0,0.00024931,3]
[340599750,1729518675515,-502.31121066,0.00024931,3]
[340599751,1729518675525,-500.0,0.00024931,3]
[340599752,1729518675535,-503.67375044,0.00024931,3]
[340599753,1729518675546,-500.0,0.00024931,3]
[340599754,1729518675557,-501.66635562,0.00024931,3]
[340599755,1729518675567,-500.0,0.00024931,3]
[340599756,1729518675577,-180.98998223,0.00024931,3]
[340599757,1729518675588,-514.31975029,0.00024931,3]
[340599758,1729518675598,-500.0,0.00024931,3]
[340599759,1729518675609,-515.56242916,0.00024931,3]
[340599760,1729518675620,-503.34002586,0.00024931,3]
[340599761,1729518675630,-500.0,0.00024931,3]
[340599762,1729518675640,-500.0,0.00024931,2]
[340599763,1729518675658,-382.60242168,0.00024931,3]
[340599764,1729518675669,-504.95567173,0.00024931,2]
[340599765,1729518675679,-519.8799032,0.00024931,3]
[340599766,1729518675690,-510.62897713,0.00024931,3]
[340599767,1729518675701,-500.0,0.00024931,3]
[340599768,1729518675711,-503.52317764,0.00024931,3]
[340599769,1729518675720,-500.0,0.00024931,3]
[340599770,1729518675731,-500.0,0.00024931,3]
[340599771,1729518675742,-500.0,0.00024931,3]
[340599772,1729518675752,-500.0,0.00024931,3]
[340599773,1729518675762,-425.18811813,0.00024931,3]
[340599774,1729518675773,-500.0,0.00024931,3]
[340599775,1729518675783,-500.0,0.00024931,3]
[340599776,1729518675794,-185.00583322,0.00024931,3]
[340599777,1729518675803,-557.16878059,0.00024931,3]
[340599778,1729518675813,-500.0,0.00024931,3]
[340599779,1729518675823,-569.72963962,0.00024931,3]
[340599780,1729518675833,-513.86832259,0.00024931,3]
[340599781,1729518675844,-500.0,0.00024931,3]
[340599782,1729518675854,-505.11056269,0.00024931,3]
[340599783,1729518675863,-500.0,0.00024931,3]
[340599784,1729518675874,-500.0,0.00024931,3]
[340599785,1729518675884,-503.1893649,0.00024931,3]
[340599786,1729518675894,-340.51332214,0.00024931,3]
[340599787,1729518675908,-517.95370286,0.00024931,3]
[340599788,1729518675918,-500.0,0.00024931,3]
[340599789,1729518675929,-245.77230596,0.00024931,3]
[340599790,1729518675939,-500.0,0.00024931,3]
[340599791,1729518675949,-504.69910187,0.00024931,3]
[340599792,1729518675960,-505.99655732,0.00024931,3]
[340599793,1729518675970,-538.69261844,0.00024931,3]
[340599794,1729518675980,-502.86289988,0.00024931,3]
[340599795,1729518675991,-502.73931829,0.00024931,3]
[340599796,1729518676001,-529.7152577,0.00024931,3]
[340599797,1729518676010,-609.27305369,0.00024931,3]
[340599798,1729518676021,-500.0,0.00024931,3]
[340599799,1729518676031,-505.59595885,0.00024931,3]
[340599800,1729518676042,-500.0,0.00024931,3]
[340599801,1729518676053,-500.0,0.00024931,3]
[340599802,1729518676063,-500.0,0.00024931,3]
[340599803,1729518676073,-271.53859054,0.00024931,3]
[340599804,1729518676083,-500.0,0.00024931,3]
[340599805,1729518676094,-520.3130138,0.00024931,3]
[340599806,1729518676104,-559.03884912,0.00024931,3]
[340599807,1729518676114,-501.95611155,0.00024931,3]
[340599808,1729518676124,-509.59254683,0.00024931,3]
[340599809,1729518676134,-500.0,0.00024931,3]
[340599810,1729518676145,-500.0,0.00024931,3]
[340599811,1729518676158,-500.0,0.00024931,3]
[340599812,1729518676168,-500.0,0.00024931,3]
[340599813,1729518676179,-500.0,0.00024931,3]
[340599814,1729518676192,-500.0,0.00024931,3]
[340599815,1729518676204,-258.09622942,0.00024931,3]
[340599816,1729518676214,-508.66217711,0.00024931,3]
[340599817,1729518676224,-500.0,0.00024931,3]
[340599818,1729518676235,-545.57116953,0.00024931,3]
[340599819,1729518676245,-564.17821184,0.00024931,3]
[340599820,1729518676255,-392.21883001,0.00024931,3]
[340599821,1729518676265,-502.83578366,0.00024931,3]
[340599822,1729518676275,-500.0,0.00024931,3]
[340599823,1729518676286,-511.56964655,0.00024931,3]
[340599824,1729518676296,-530.29455458,0.00024931,3]
[340599825,1729518676307,-500.0,0.00024931,3]
[340599826,1729518676317,-239.94,0.00024931,3]
[340599827,1729518676450,-503.93872635,0.00024931,3]
[340599828,1729518676460,-500.0,0.00024931,3]
[340599829,1729518676471,-503.71781332,0.00024931,3]
[340599830,1729518676481,-505.15809215,0.00024931,3]
[340599831,1729518676492,-502.91712375,0.00024931,3]
[340599832,1729518676502,-500.0,0.00024931,3]
[340599833,1729518676511,-500.0,0.00024931,3]
[340599834,1729518676520,-513.10554343,0.00024931,3]
[340599835,1729518676530,-500.0,0.00024931,3]
[340599836,1729518676539,-500.0,0.00024931,3]
[340599837,1729518676551,-500.0,0.00024931,3]
[340599838,1729518676561,-500.0,0.00024931,3]
[340599839,1729518676571,-500.0,0.00024931,3]
[340599840,1729518676581,-533.42653852,0.00024931,3]
[340599841,1729518676590,-557.32062414,0.00024931,3]
[340599842,1729518676600,-502.92322846,0.00024931,3]
[340599843,1729518676610,-623.38488763,0.00024931,3]
[340599844,1729518676621,-500.0,0.00024931,3]
[340599845,1729518676631,-502.60006339,0.00024931,3]
[340599846,1729518676640,-500.0,0.00024931,3]
[340599847,1729518676651,-500.0,0.00024931,3]
[340599848,1729518676661,-500.0,0.00024931,3]
[340599849,1729518676671,-500.0,0.00024931,3]
[340599850,1729518676681,-500.0,0.00024931,3]
[340599851,1729518676691,-500.0,0.00024931,3]
[340599852,1729518676700,-500.0,0.00024931,3]
[340599853,1729518676710,-467.19379682,0.00024931,3]
[340599854,1729518676719,-269.83802736,0.00024931,3]
[340599855,1729518676729,-500.0,0.00024931,3]
[340599856,1729518676739,-359.51567448,0.00024931,3]
[340599857,1729518676749,-500.0,0.00024931,3]
[340599858,1729518676760,-500.0,0.00024931,3]
[340599859,1729518676769,-500.0,0.00024931,3]
[340599860,1729518676778,-500.0,0.00024931,3]
[340599861,1729518676788,-516.55916679,0.00024931,3]
[340599862,1729518676797,-500.0,0.00024931,3]
[340599863,1729518676807,-500.0,0.00024931,3]
[340599864,1729518676816,-500.0,0.00024931,3]
[340599865,1729518676825,-500.0,0.00024931,3]
[340599866,1729518676835,-233.98892207,0.00024931,3]
[340599867,1729518676845,-500.0,0.00024931,3]
[340599868,1729518676854,-165.66327568,0.00024931,3]
[340599869,1729518676864,-500.0,0.00024931,3]
[340599870,1729518676873,-496.33788917,0.00024931,3]
[340599871,1729518676883,-593.28201276,0.00024931,3]
[340599872,1729518676896,-500.0,0.00024931,3]
[340599873,1729518676917,-511.95065401,0.00024931,3]
[340599874,1729518676927,-500.0,0.00024931,3]
[340599875,1729518676936,-500.0,0.00024931,3]
[340599876,1729518676946,-561.61,0.00024931,3]
[340599877,1729518676955,-500.0,0.00024931,3]
[340599878,1729518676964,-503.34182552,0.00024931,3]
[340599879,1729518676974,-500.0,0.00024931,3]
[340599880,1729518676984,-402.76104371,0.00024931,3]
[340599881,1729518676994,-500.0,0.00024931,3]
[340599882,1729518677003,-522.45951906,0.00024931,3]
[340599883,1729518677013,-504.40756263,0.00024931,3]
[340599884,1729518677022,-500.0,0.00024931,3]
[340599885,1729518677031,-500.0,0.00024931,3]
[340599886,1729518677041,-555.2505156,0.00024931,3]
[340599887,1729518677050,-504.89013534,0.00024931,3]
[340599888,1729518677060,-505.92524979,0.00024931,3]
[340599889,1729518677069,-500.0,0.00024931,3]
[340599890,1729518677078,-500.0,0.00024931,3]
[340599891,1729518677089,-500.0,0.00024931,3]
[340599892,1729518677099,-500.0,0.00024931,3]
[340599893,1729518677109,-317.86683382,0.00024931,3]
[340599894,1729518677120,-197.91962495,0.00024931,3]
[340599895,1729518677130,-504.19171395,0.00024931,3]
[340599896,1729518677140,-500.0,0.00024931,3]
[340599897,1729518677151,-500.0,0.00024931,3]
[340599898,1729518677162,-500.0,0.00024931,3]
[340599899,1729518677171,-204.98047294,0.00024931,3]
[340599900,1729518677181,-500.0,0.00024931,3]
[340599901,1729518677191,-500.0,0.00024931,3]
[340599902,1729518677201,-500.0,0.00024931,3]
[340599903,1729518677212,-500.0,0.00024931,3]
[340599904,1729518677222,-263.95985246,0.00024931,3]
[340599905,1729518677232,-500.0,0.00024931,3]
[340599906,1729518677242,-500.0,0.00024931,3]
[340599907,1729518677252,-476.64822161,0.00024931,3]
[340599908,1729518677262,-500.0,0.00024931,3]
[340599909,1729518677272,-218.13093486,0.00024931,3]
[340599910,1729518677282,-500.0,0.00024931,3]
[340599911,1729518677291,-503.81776578,0.00024931,3]
[340599912,1729518677302,-647.77339195,0.00024931,3]
[340599913,1729518677312,-500.0,0.00024931,3]
[340599914,1729518677321,-501.73323004,0.00024931,3]
[340599915,1729518677331,-414.84718913,0.00024931,3]
[340599916,1729518677341,-505.01138025,0.00024931,3]
[340599917,1729518677351,-500.0,0.00024931,3]
[340599918,1729518677361,-342.57479167,0.00024931,3]
[340599919,1729518677371,-542.48221061,0.00024931,3]
[340599920,1729518677380,-500.0,0.00024931,3]
[340599921,1729518677390,-500.0,0.00024931,3]
[340599922,1729518677405,-500.0,0.00024931,3]
[340599923,1729518677415,-500.0,0.00024931,3]
[340599924,1729518677425,-500.0,0.00024931,3]
[340599925,1729518677435,-187.42185921,0.00024931,3]
[340599926,1729518677444,-533.31389804,0.00024931,3]
[340599927,1729518677454,-500.0,0.00024931,3]
[340599928,1729518677463,-326.83786738,0.00024931,3]
[340599929,1729518677473,-501.81707155,0.00024931,3]
[340599930,1729518677482,-500.0,0.00024931,3]
[340599931,1729518677492,-500.0,0.00024931,3]
[340599932,1729518677502,-209.0420689,0.00024931,3]
[340599933,1729518677512,-500.0,0.00024931,3]
[340599934,1729518677522,-500.0,0.00024931,3]
[340599935,1729518677531,-450.11100603,0.00024931,3]
[340599936,1729518677541,-617.35982,0.00024931,3]
[340599937,1729518677552,-500.0,0.00024931,3]
[340599938,1729518677562,-500.0,0.00024931,3]
[340599939,1729518677572,-503.27415965,0.00024931,3]
[340599940,1729518677582,-500.0,0.00024931,3]
[340599941,1729518677592,-500.0,0.00024931,3]
[340599942,1729518677602,-507.61843261,0.00024931,3]
[340599943,1729518677611,-517.42614081,0.00024931,3]
[340599944,1729518677621,-500.0,0.00024931,3]
[340599945,1729518677632,-500.0,0.00024931,3]
[340599946,1729518677642,-332.6955711,0.00024931,3]
[340599947,1729518677654,-509.13308906,0.00024931,3]
[340599948,1729518677664,-500.0,0.00024931,3]
[340599949,1729518677674,-509.21818229,0.00024931,3]
[340599950,1729518677683,-511.66902209,0.00024931,3]
[340599951,1729518677692,-502.81822725,0.00024931,3]
[340599952,1729518677703,-500.0,0.00024931,3]
[340599953,1729518677712,-315.21028444,0.00024931,3]
[340599954,1729518677722,-500.0,0.00024931,3]
[340599955,1729518677731,-500.0,0.00024931,3]
[340599956,1729518677741,-566.12949448,0.00024931,3]
[340599957,1729518677751,-500.0,0.00024931,3]
[340599958,1729518677760,-500.0,0.00024931,3]
[340599959,1729518677769,-500.0,0.00024931,3]
[340599960,1729518677778,-500.0,0.00024931,3]
[340599961,1729518677789,-503.23694793,0.00024931,3]
[340599962,1729518677799,-279.60723784,0.00024931,3]
[340599963,1729518677809,-502.69779652,0.00024931,3]
[340599964,1729518677819,-500.0,0.00024931,3]
[340599965,1729518677828,-500.0,0.00024931,3]
[340599966,1729518677838,-308.84,0.00024931,3]
[340599967,1729518677847,-277.59810099,0.00024931,3]
[340599968,1729518677857,-500.0,0.00024931,3]
[340599969,1729518677866,-209.13317664,0.00024931,3]
[340599970,1729518677876,-500.0,0.00024931,3]
[340599971,1729518677885,-501.4990984,0.00024931,3]
[340599972,1729518677895,-501.44794229,0.00024931,3]
[340599973,1729518677906,-500.0,0.00024931,3]
[340599974,1729518677915,-503.20769816,0.00024931,3]
[340599975,1729518677924,-509.45651031,0.00024931,3]
[340599976,1729518677934,-245.52680917,0.00024931,3]
[340599977,1729518677943,-648.08614234,0.00024931,3]
[340599978,1729518677953,-511.06687629,0.00024931,3]
[340599979,1729518677963,-500.0,0.00024931,3]
[340599980,1729518677972,-281.58453694,0.00024931,3]
[340599981,1729518677982,-500.0,0.00024931,3]
[340599982,1729518677992,-500.0,0.00024931,3]
[340599983,1729518678002,-500.0,0.00024931,3]
[340599984,1729518678011,-523.64078429,0.00024931,3]
[340599985,1729518678021,-500.0,0.00024931,3]
[340599986,1729518678031,-618.70491852,0.00024931,3]
[340599987,1729518678040,-500.0,0.00024931,3]
[340599988,1729518678050,-500.0,0.00024931,3]
[340599989,1729518678059,-436.0590148,0.00024931,3]
[340599990,1729518678069,-319.22024101,0.00024931,3]
[340599991,1729518678079,-525.40201277,0.00024931,3]
[340599992,1729518678089,-500.0,0.00024931,3]
[340599993,1729518678099,-510.26798015,0.00024931,3]
[340599994,1729518678109,-500.88867911,0.00024931,3]
[340599995,1729518678119,-513.1412608,0.00024931,3]
[340599996,1729518678129,-572.07165948,0.00024931,3]
[340599997,1729518678139,-594.8184826,0.00024931,3]
[340599998,1729518678149,-501.88917837,0.00024931,3]
[340599999,1729518678160,-500.0,0.00024931,3]
[340600000,1729518678171,-500.0,0.00024931,3]
[340600001,1729518678181,-500.0,0.00024931,3]
[340600002,1729518678191,-549.03749328,0.00024931,3]
[340600003,1729518678201,-500.0,0.00024931,3]
[340600004,1729518678211,-502.776734,0.00024931,3]
[340600005,1729518678221,-470.54,0.00024931,3]
[340600006,1729518678230,-503.30645338,0.00024931,3]
[340600007,1729518678240,-533.35770928,0.00024931,3]
[340600008,1729518678250,-504.18661405,0.00024931,3]
[340600009,1729518678259,-500.0,0.00024931,3]
[340600010,1729518678270,-506.66296387,0.00024931,3]
[340600011,1729518678279,-504.41761782,0.00024931,3]
[340600012,1729518678289,-502.72597204,0.00024931,3]
[340600013,1729518678299,-592.59803414,0.00024931,3]
[340600014,1729518678309,-530.32282748,0.00024931,3]
[340600015,1729518678319,-500.0,0.00024931,3]
[340600016,1729518678330,-500.0,0.00024931,3]
[340600017,1729518678340,-232.17343299,0.00024931,3]
[340600018,1729518678349,-500.0,0.00024931,3]
[340600019,1729518678359,-503.32191006,0.00024931,3]
[340600020,1729518678369,-170.54798127,0.00024931,3]
[340600021,1729518678379,-542.08110047,0.00024931,3]
[340600022,1729518678390,-504.24634973,0.00024931,3]
[340600023,1729518678405,-547.71012478,0.00024931,3]
[340600024,1729518678419,-502.37859317,0.00024931,3]
[340600025,1729518678429,-500.0,0.00024931,3]
[340600026,1729518678439,-500.0,0.00024931,3]
[340600027,1729518678450,-486.78185418,0.00024931,3]
[340600028,1729518678461,-500.0,0.00024931,3]
[340600029,1729518678471,-500.0,0.00024931,3]
[340600030,1729518678482,-500.0,0.00024931,3]
[340600031,1729518678492,-423.82631799,0.00024931,3]
[340600032,1729518678502,-203.05308749,0.00024931,3]
[340600033,1729518678512,-502.77313258,0.00024931,3]
[340600034,1729518678522,-506.45845146,0.00024931,3]
[340600035,1729518678531,-505.7968252,0.00024931,3]
[340600036,1729518678542,-500.0,0.00024931,3]
[340600037,1729518678554,-500.0,0.00024931,3]
[340600038,1729518678565,-512.74208632,0.00024931,3]
[340600039,1729518678575,-503.94597107,0.00024931,3]
[340600040,1729518678584,-500.0,0.00024931,3]
[340600041,1729518678594,-500.0,0.00024931,3]
[340600042,1729518678604,-500.0,0.00024931,3]
[340600043,1729518678614,-454.78188628,0.00024931,3]
[340600044,1729518678624,-515.51357568,0.00024931,3]
[340600045,1729518678634,-524.70931348,0.00024931,3]
[340600046,1729518678644,-500.0,0.00024931,3]
[340600047,1729518678656,-524.31304282,0.00024931,3]
[340600048,1729518678666,-500.0,0.00024931,3]
[340600049,1729518678676,-500.0,0.00024931,3]
[340600050,1729518678687,-409.24896268,0.00024931,3]
[340600051,1729518678697,-525.52784095,0.00024931,3]
[340600052,1729518678706,-381.10137167,0.00024931,3]
[340600053,1729518678717,-518.77438547,0.00024931,3]
[340600054,1729518678726,-507.68147667,0.00024931,3]
[340600055,1729518678736,-500.0,0.00024931,3]
[340600056,1729518678746,-272.42674173,0.00024931,3]
[340600057,1729518678756,-357.31946914,0.00024931,3]
[340600058,1729518678765,-498.4684624,0.00024931,3]
[340600059,1729518678775,-602.61547721,0.00024931,3]
[340600060,1729518678785,-502.02517224,0.00024931,3]
[340600061,1729518678795,-500.0,0.00024931,3]
[340600062,1729518678805,-254.62072079,0.00024931,3]
[340600063,1729518678815,-537.00685307,0.00024931,3]
[340600064,1729518678825,-500.0,0.00024931,3]
[340600065,1729518678835,-503.92679933,0.00024931,3]
[340600066,1729518678844,-509.55504208,0.00024931,3]
[340600067,1729518678854,-505.48553928,0.00024931,3]
[340600068,1729518678864,-500.0,0.00024931,3]
[340600069,1729518678874,-500.0,0.00024931,3]
[340600070,1729518678884,-586.68764227,0.00024931,3]
[340600071,1729518678894,-502.19234657,0.00024931,3]
[340600072,1729518678907,-515.45485207,0.00024931,3]
[340600073,1729518678917,-509.98540825,0.00024931,3]
[340600074,1729518678927,-501.00872368,0.00024931,3]
[340600075,1729518678936,-500.0,0.00024931,3]
[340600076,1729518678946,-504.15577928,0.00024931,3]
[340600077,1729518678956,-500.0,0.00024931,3]
[340600078,1729518678966,-500.0,0.00024931,3]
[340600079,1729518678977,-438.45167587,0.00024931,3]
[340600080,1729518678987,-504.24476147,0.00024931,3]
[340600081,1729518678999,-500.0,0.00024931,3]